Workbook

Sheet Start_Here
B1: OHLHB0477-10 | C1: <-Grant No. | D1: Questionnaire Completion Status-> | E1: =Central_Control!H1 -> Not Completed
A2: INSTRUCTIONS FOR QUESTIONNAIRE
A3: To: Grantees receiving Lead Hazard Control funding
B4: QuanTech has been tasked to obtain information about your experience conducting clearance testing on your Lead Hazard Control (LHC) grant. Please answer the questions provided in this Excel workbookbased on your organization’s experience during the last 12 months. If you have any questions, contact either Gary Dewalt, of QuanTech, the questionnaire contractor, at 610-255-5525 or Eugene Pinzer, of HUD’s Office of Healthy Homes and Lead Hazard Control, at 202-402-7685. OMB Control No. xxxx-xxxx.
A5: Software Requirements
B6: This questionnaire contains a large number of macros and must be run using Excel 2007 or a more recent version of Excel. When the workbook (spreadsheet) is opened, you must give permission to allow the macros to be run if asked by your software. In addition, it is recommended that you do not have any other Excel workbooks open when using this spreadsheet!
A7: General Information on How to Use this Questionnaire
B8: This questionnaire is provided in an email to you and has been specifically configured for your Lead Hazard Control grant (number listed at the top left of this sheet). If the grant number shown is not one that you have, please contact Gary Dewalt for more instructions. Two sets of questions are provided in this workbook. One set is a "general" question set containing 6 questions. The other set is a dwelling "unit-specific" set of 18 questions. All questions are answered by clicking on buttons provided throughout this workbook. Direct entries into worksheet cells are not required nor reccomended. You can change the answer to any question by simply going back and clicking the entry button for that question. However, keep in mind that doing so will remove your previous entry for that specific question and the question must be re-answered even if you decided not to change it after your re-clicked an entry button that already had an answer. The workbook is setup to display your data entries as you make them, so you will know immediately if this happens. This workbook has been pre-populated with up to a maximum of 20 dwelling unit addresses that you have reported as having been completed in OHHLHC's Quarterly Progress Report System. In addition to answering the set of 6 general questions, to complete the questionnaire you must answer the same unit-specific set of 18 questions for each of these unit addresses.
A9: Before You Start
B10: If you have not done so already, please save this questionnaire in a directory of your hard drive that is easily accessible to you and re-open it from that directory before answering any questions. We recommend not changing the name of the file as it has your grant ID embedded within the filename.
A11: Saving the questionnaire
B12: Buttons are provided to save a completed or partially completed questionnaire to your hard drive. These buttons will save the workbook in whatever directory the workbook was originally stored. When all the questions for all units have been answered, these save buttons will append a "_done" tag to the filename providing a clear indication that the file is ready to be emailed back to QuanTech.
A13: Submitting a Completed Questionnaire
B14: Attach the completed workbook to an email and email it to Gary Dewalt at fgdewalt@quantech.com
A15: Preparing for Answering Questions
B16: In order to help you prepare to answer the unit specific questions, a "Click here to print question sets" button is provided below so that you can preview the questions you will be answering in this workbook. Clicking this button will print the 2 question sets (one for general questions and one for unit-specific questions) to your default printer. The printed question set is NOT to be used as a markup sheet to submit your answers to QuanTech or HUD. It is only being provided for you to understand the types of information you need to pull from your records to make data entries into this workbook.

Sheet Central_Control
B1: OHLHB0477-10 | C1: <-Grant No. | E1: Questionnaire Completion Status-> | H1: =IF(J1=200,"Completed",IF(J1=0,"Not Completed","Partially Completed")) -> Not Completed | J1: =J5+J3 -> 0 | K1: <--combined % of general and unit specific questions
A3: ANSWER GENERAL QUESTIONS.......... | D3: =IF(J3=100,"Completed",IF(J3=0,"Not Completed","Partially Completed")) -> Not Completed | E3: <-Current Status | J3: =GEN_Q!J5 -> 0 | K3: <--% of general questions completed
B4: Click the button to the right answer the general questions-------------------->
A5: ANSWER UNIT-SPECIFIC QUESTIONS.... | D5: =IF(J5=100,"Completed",IF(J5=0,"Not Completed","Partially Completed")) -> Not Completed | E5: <-Current Status | I5: =SUM(I14:I33) -> 0 | J5: =ROUND(100*(I5/L12),0) -> 0 | K5: <--% of unit-specific questions completed
B6: Please provide answers to unit-specific questions on the units listed below.
B7: To print a list of these units, use the "Click here to print unit list" button. Clicking this button will print the address listing shown below to your default printer in a portrait format.
B8: To answer the unit-specific questions for each unit listed in the table below, use the "Answer Unit Questions" button shown under "Questionnaire Access Control" in the row listing each unit address.
B12: Units Selected for Survey | G12: Questionnaire Access Control | H12: Question Completion Status | I12: Complete | J12: % | L12: =SUM(L14:L33) -> 20 | M12: <-total units in list | N12: Keep This Col!
B13: Address | C13: Apt# | D13: City | E13: State | F13: Zip | I13: flag | J13: Complete | K13: UnitID | L13: Unit in List Flag | M13: Displayed Address [block below named UNITS]
B14: 621 Pasadena Place | D14: Youngstown | E14: OH | F14: 44502 | H14: =IF(J14=0,"- not entered -",IF(J14=100,"Completed",J14&" % Completed")) -> - not entered - | I14: =IF(H14="Completed",1,0) -> 0 | J14: =UData0!D5 -> 0 | K14: 1 | L14: =IF(TRIM(B14)="",0,1) -> 1 | M14: =IF(C14="",TRIM(B14)&", "&TRIM(D14)&", "&TRIM(E14)&" ,"&TRIM(F14),TRIM(B14)&", "&TRIM(C14)&", "&TRIM(D14)&", "&TRIM(E14)&" ,"&TRIM(F14)) -> 621 Pasadena Place, Youngstown, OH ,44502 | N14: =K14 -> 1
B15: 123 Alabama Lane | D15: Youngstown | E15: OH | F15: 44502 | H15: =IF(J15=0,"- not entered -",IF(J15=100,"Completed",J15&" % Completed")) -> - not entered - | I15: =IF(H15="Completed",1,0) -> 0 | J15: =UData0!E5 -> 0 | K15: 2 | L15: =IF(TRIM(B15)="",0,1) -> 1 | M15: =IF(C15="",TRIM(B15)&", "&TRIM(D15)&", "&TRIM(E15)&" ,"&TRIM(F15),TRIM(B15)&", "&TRIM(C15)&", "&TRIM(D15)&", "&TRIM(E15)&" ,"&TRIM(F15)) -> 123 Alabama Lane, Youngstown, OH ,44502 | N15: =K15 -> 2
B16: 33 Georgia Avenue | C16: 3B | D16: Youngstown | E16: OH | F16: 44502 | H16: - not entered - | I16: 0 | J16: =UData0!F5 -> 0 | K16: 3 | L16: 1 | M16: 33 Georgia Avenue, 3B, Youngstown, OH ,44502 | N16: 3
B17: 33 Georgia Avenue | C17: 4A | D17: Youngstown | E17: OH | F17: 44502 | H17: - not entered - | I17: 0 | J17: =UData0!G5 -> 0 | K17: 4 | L17: 1 | M17: 33 Georgia Avenue, 4A, Youngstown, OH ,44502 | N17: 4
B18: 275 Maryland Place | D18: Youngstown | E18: OH | F18: 44502 | H18: - not entered - | I18: 0 | J18: =UData0!H5 -> 0 | K18: 5 | L18: 1 | M18: 275 Maryland Place, Youngstown, OH ,44502 | N18: 5
B19: 99 Sprint Avenue | D19: Youngstown | E19: OH | F19: 44502 | H19: - not entered - | I19: 0 | J19: =UData0!I5 -> 0 | K19: 6 | L19: 1 | M19: 99 Sprint Avenue, Youngstown, OH ,44502 | N19: 6
B20: 1313 Developer Lane | D20: Youngstown | E20: OH | F20: 44502 | H20: - not entered - | I20: 0 | J20: =UData0!J5 -> 0 | K20: 7 | L20: 1 | M20: 1313 Developer Lane, Youngstown, OH ,44502 | N20: 7
B21: 911 Airport Rd | D21: Youngstown | E21: OH | F21: 44502 | H21: - not entered - | I21: 0 | J21: =UData0!K5 -> 0 | K21: 8 | L21: 1 | M21: 911 Airport Rd, Youngstown, OH ,44502 | N21: 8
B22: 14 Colorado Blvd | D22: Youngstown | E22: OH | F22: 44502 | H22: - not entered - | I22: 0 | J22: =UData0!L5 -> 0 | K22: 9 | L22: 1 | M22: 14 Colorado Blvd, Youngstown, OH ,44502 | N22: 9
B23: 747 Hanger Street | D23: Youngstown | E23: OH | F23: 44502 | H23: - not entered - | I23: 0 | J23: =UData0!M5 -> 0 | K23: 10 | L23: 1 | M23: 747 Hanger Street, Youngstown, OH ,44502 | N23: 10
B24: 86 Deep Creek Lane | D24: Youngstown | E24: OH | F24: 44502 | H24: - not entered - | I24: 0 | J24: =UData0!N5 -> 0 | K24: 11 | L24: 1 | M24: 86 Deep Creek Lane, Youngstown, OH ,44502 | N24: 11
B25: 2155 Park Place | D25: Youngstown | E25: OH | F25: 44502 | H25: - not entered - | I25: 0 | J25: =UData0!O5 -> 0 | K25: 12 | L25: 1 | M25: 2155 Park Place, Youngstown, OH ,44502 | N25: 12
B26: 1 Canary Place | D26: Youngstown | E26: OH | F26: 44502 | H26: - not entered - | I26: 0 | J26: =UData0!P5 -> 0 | K26: 13 | L26: 1 | M26: 1 Canary Place, Youngstown, OH ,44502 | N26: 13
B27: 9 Catalina Lane | D27: Youngstown | E27: OH | F27: 44502 | H27: - not entered - | I27: 0 | J27: =UData0!Q5 -> 0 | K27: 14 | L27: 1 | M27: 9 Catalina Lane, Youngstown, OH ,44502 | N27: 14
B28: 101 Spotted Dog Rd | D28: Youngstown | E28: OH | F28: 44502 | H28: - not entered - | I28: 0 | J28: =UData0!R5 -> 0 | K28: 15 | L28: 1 | M28: 101 Spotted Dog Rd, Youngstown, OH ,44502 | N28: 15
B29: 1 Picture Street | D29: Youngstown | E29: OH | F29: 44502 | H29: - not entered - | I29: 0 | J29: =UData0!S5 -> 0 | K29: 16 | L29: 1 | M29: 1 Picture Street, Youngstown, OH ,44502 | N29: 16
B30: 44 Gunsmoke Rd | D30: Youngstown | E30: OH | F30: 44502 | H30: - not entered - | I30: 0 | J30: =UData0!T5 -> 0 | K30: 17 | L30: 1 | M30: 44 Gunsmoke Rd, Youngstown, OH ,44502 | N30: 17
B31: 38 Caliber Street | C31: 2A | D31: Youngstown | E31: OH | F31: 44502 | H31: - not entered - | I31: 0 | J31: =UData0!U5 -> 0 | K31: 18 | L31: 1 | M31: 38 Caliber Street, 2A, Youngstown, OH ,44502 | N31: 18
B32: 38 Caliber Street | C32: 4A | D32: Youngstown | E32: OH | F32: 44502 | H32: - not entered - | I32: 0 | J32: =UData0!V5 -> 0 | K32: 19 | L32: 1 | M32: 38 Caliber Street, 4A, Youngstown, OH ,44502 | N32: 19
B33: 38 Caliber Street | C33: 6A | D33: Youngstown | E33: OH | F33: 44502 | H33: - not entered - | I33: 0 | J33: =UData0!W5 -> 0 | K33: 20 | L33: 1 | M33: 38 Caliber Street, 6A, Youngstown, OH ,44502 | N33: 20

Sheet GEN_Q (hidden)
B1: This sheet contains the General Questions | G1: Admin Use Only Columns (to be hidden from grantees)
C3: Completion status of entire questionnaire -> | D3: =Central_Control!H1 -> Not Completed | G3: 0
C5: Completion status of general questions -> | D5: =IF(G5=18,"Completed",J5&" % completed") -> 0 % completed | G5: =SUM(G11:G43) -> 0 | H5: <--count of 1 flgs | J5: =ROUND(100*(G5/6),0) -> 0 | K5: <--% of general questions completed
B9: General Questions About Your Lead Hazard Control Grant | G9: Complete Flgs
A10: Q | C10: Question Topic Area | D10: Your Data Entry
A11: 1 | B11: ="Question "&A11 -> Question 1 | C11: =VLOOKUP(A11,GEN,3,FALSE) -> Regarding this HUD Lead Hazard Control grant, please indicate your organization type: | D11: - not entered - | G11: =IF(D11="- not entered -",0,1) -> 0
D12: - not entered -
D13: - not entered -
A14: 2 | B14: ="Question "&A14 -> Question 2 | C14: =VLOOKUP(A14,GEN,3,FALSE) -> Please indicate the category that best describes your organization: | D14: - not entered - | G14: =IF(D14="- not entered -",0,1) -> 0
C15: =VLOOKUP(A15,GEN,3,FALSE) -> 0 | D15: - not entered -
C16: 0 | D16: - not entered -
C17: 0 | D17: - not entered -
C18: 0 | D18: - not entered -
C19: 0 | D19: - not entered -
C20: 0 | D20: - not entered -
C21: 0 | D21: - not entered -
A22: 3 | B22: ="Question "&A22 -> Question 3 | C22: What triggers recruitment of homes into the grant? | D22: =IF(G_Sort!B22="z","- not entered -",G_Sort!B22) -> - not entered - | G22: =IF(D22="- not entered -",0,1) -> 0
A23: =A22+0.02 -> 3.02 | D23: =IF(G_Sort!B23="z","",G_Sort!B23) -> 
A24: =A23+0.01 -> 3.03 | D24: =IF(G_Sort!B24="z","",G_Sort!B24) -> 
A25: =A24+0.01 -> 3.04 | D25: =IF(G_Sort!B25="z","",G_Sort!B25) -> 
A26: 3.05 | D26: =IF(G_Sort!B26="z","",G_Sort!B26) -> 
A27: 3.06 | D27: =IF(G_Sort!B27="z","",G_Sort!B27) -> 
A28: 3.07 | D28: =IF(G_Sort!B28="z","",G_Sort!B28) -> 
A29: 3.08 | D29: =IF(G_Sort!B29="z","",G_Sort!B29) -> 
A30: 3.09 | D30: =IF(G_Sort!B30="z","",G_Sort!B30) -> 
A31: 3.10 | D31: =IF(G_Sort!B31="z","",G_Sort!B31) -> 
A32: 4 | B32: Question 4 | C32: =VLOOKUP(A32,GEN,3,FALSE) -> Please rank unit recruitment triggers by frequency with most frequent at the top of the list. | D32: =IF(G_Sort!B32="z","- not entered -",G_Sort!B32) -> - not entered - | G32: =IF(D32="- not entered -",0,1) -> 0
A33: =A32+0.02 -> 4.02 | D33: =IF(G_Sort!B33="z","",G_Sort!B33) -> 
A34: =A33+0.01 -> 4.03 | D34: =IF(G_Sort!B34="z","",G_Sort!B34) -> 
A35: =A34+0.01 -> 4.04 | D35: =IF(G_Sort!B35="z","",G_Sort!B35) -> 
A36: 4.05 | D36: =IF(G_Sort!B36="z","",G_Sort!B36) -> 
A37: 4.06 | D37: =IF(G_Sort!B37="z","",G_Sort!B37) -> 
A38: 4.07 | D38: =IF(G_Sort!B38="z","",G_Sort!B38) -> 
A39: 4.08 | D39: =IF(G_Sort!B39="z","",G_Sort!B39) -> 
A40: 4.09 | D40: =IF(G_Sort!B40="z","",G_Sort!B40) ->  | I40: 0
A41: 4.10 | D41: =IF(G_Sort!B41="z","",G_Sort!B41) -> 
A42: 5 | B42: ="Question "&A42 -> Question 5 | C42: =VLOOKUP(A42,GEN,3,FALSE) -> On how many dwelling units have you performed lead hazard control work and clearance testing in the past 12 months? | D42: - not entered - | G42: =IF(D42="- not entered -",0,1) -> 0
A43: 6 | B43: ="Question "&A43 -> Question 6 | C43: =VLOOKUP(A43,GEN,3,FALSE) -> What is the reporting limit of your laboratory for floor lead dust wipe samples in µg/ft² (generally indicated by a less-than sign (<) preceding the laboratory reported result)? | D43: - not entered - | G43: =IF(D43="- not entered -",0,1) -> 0
D76: - not entered -
D77: - not entered -
D82: - not entered -
D113: - not entered -
D114: - not entered -
D120: - not entered -

Sheet UNIT_Q
B1: This sheet contains questions for the unit shown below | G1: Admin Use Only Columns (to be hidden from grantees)
C3: Completion status of entire questionnaire -> | D3: =Central_Control!H1 -> Not Completed | H3: 621 Pasadena Place, Youngstown, OH ,44502
C5: Completion status of questions for this unit -> | D5: =IF(G5=18,"Completed",J5&" % completed") -> 0 % completed | G5: =COUNTIF(G11:G159,1) -> 0 | H5: <--count of 1 flgs | J5: =ROUND(100*(G5/18),0) -> 0 | K5: <--% of questions completed for this unit
A9: 1 | B9: ="Questions for: "&H3 -> Questions for: 621 Pasadena Place, Youngstown, OH ,44502 | G9: Complete Flg
C10: Question Topic Area | D10: Your Data Entry
A11: 1 | B11: ="Question "&A11 -> Question 1 | C11: =VLOOKUP(A11,Uni,3,FALSE) -> Please identify the type of dwelling: | D11: - not entered - | G11: =IF(D11="- not entered -",0,1) -> 0
A12: =A11+0.02 -> 1.02 | J12: UnitID= | K12: =A9 -> 1
A13: =A12+0.01 -> 1.03
A14: =A13+0.01 -> 1.04
A15: =A14+0.01 -> 1.05
A16: =A15+0.01 -> 1.06
A17: =A16+0.01 -> 1.07
A18: 2 | B18: ="Question "&A18 -> Question 2 | C18: =VLOOKUP(A18,Uni,3,FALSE) -> Please identify the construction date of this unit: | D18: - not entered - | G18: =IF(D18="- not entered -",0,1) -> 0
A19: =A18+0.02 -> 2.02
A20: =A19+0.01 -> 2.03
A21: =A20+0.01 -> 2.04
A22: =A21+0.01 -> 2.05
A23: =A22+0.01 -> 2.06
A24: =A23+0.01 -> 2.07
A25: 3 | B25: ="Question "&A25 -> Question 3 | C25: =VLOOKUP(A25,Uni,3,FALSE) -> After conducting lead hazard control in this unit, what cleaning or other procedures did you use to reduce/eliminate remaining lead dust hazards before clearance testing ? | D25: =IF(U_Sort!B25="z","- not entered -",U_Sort!B25) -> - not entered - | G25: =IF(D25="- not entered -",0,1) -> 0
A26: =A25+0.02 -> 3.02 | D26: =IF(U_Sort!B26="z","",U_Sort!B26) -> 
A27: =A26+0.01 -> 3.03 | D27: =IF(U_Sort!B27="z","",U_Sort!B27) -> 
A28: 3.04 | D28: =IF(U_Sort!B28="z","",U_Sort!B28) -> 
A29: 3.05 | D29: =IF(U_Sort!B29="z","",U_Sort!B29) -> 
A30: 3.06 | D30: =IF(U_Sort!B30="z","",U_Sort!B30) -> 
A31: 3.07 | D31: =IF(U_Sort!B31="z","",U_Sort!B31) -> 
A32: 3.08 | D32: =IF(U_Sort!B32="z","",U_Sort!B32) -> 
A33: 3.09 | D33: =IF(U_Sort!B33="z","",U_Sort!B33) -> 
A34: 3.10 | D34: =IF(U_Sort!B34="z","",U_Sort!B34) -> 
A35: 3.11 | D35: =IF(U_Sort!B35="z","",U_Sort!B35) -> 
A36: 3.12 | D36: =IF(U_Sort!B36="z","",U_Sort!B36) -> 
A37: 3.13 | D37: =IF(U_Sort!B37="z","",U_Sort!B37) -> 
A38: 4 | B38: ="Question "&A38 -> Question 4 | C38: =VLOOKUP(A38,Uni,3,FALSE) -> Did this unit pass clearance on floors on the FIRST TRY? | D38: - not entered - | G38: =IF(D38="- not entered -",0,1) -> 0
A39: 5 | B39: ="Question "&A39 -> Question 5 | C39: =VLOOKUP(A39,Uni,3,FALSE) -> Did this unit pass clearance on floors on the SECOND TRY? | D39: - not entered - | G39: =IF(D39="- not entered -",0,1) -> 0
A40: 6 | B40: ="Question "&A40 -> Question 6 | C40: =VLOOKUP(A40,Uni,3,FALSE) -> Please identify the type of action taken to achieve clearance on floors in this unit AFTER ONE OR MORE CLEARANCE FAILURES​: | D40: =IF(I40=1,"- not applicable -",IF(U_Sort!B40="z","- not entered -",U_Sort!B40)) -> - not entered - | G40: =IF(D40="- not entered -",0,1) -> 0 | I40: 0 | J40: <---This cell used to mark display as not applicable
A41: =A40+0.02 -> 6.02 | D41: =IF(U_Sort!B41="z","",U_Sort!B41) -> 
A42: =A41+0.01 -> 6.03 | D42: =IF(U_Sort!B42="z","",U_Sort!B42) -> 
A43: =A42+0.01 -> 6.04 | D43: =IF(U_Sort!B43="z","",U_Sort!B43) -> 
A44: =A43+0.01 -> 6.05 | D44: =IF(U_Sort!B44="z","",U_Sort!B44) -> 
A45: 7 | B45: ="Question "&A45 -> Question 7 | C45: =VLOOKUP(A45,Uni,3,FALSE) -> Please identify the number of FINAL floor dust wipe clearance samples that were collected in this unit: | D45: - not entered - | G45: =IF(D45="- not entered -",0,1) -> 0
A46: 8 | B46: ="Question "&A46 -> Question 8 | C46: =VLOOKUP(A46,Uni,3,FALSE) -> Please enter the loading levels (µg/ft²) for each of the FINAL floor dust wipe clearance samples: | D46: =IF(U_Sort!B46="z","- not entered -",U_Sort!C46 & " = "&U_Sort!B46) -> - not entered - | G46: =IF(D46="- not entered -",0,1) -> 0
A47: =A46+0.02 -> 8.02 | D47: =IF(U_Sort!B47="z","",U_Sort!C47 & " = "&U_Sort!B47) -> 
A48: =A47+0.01 -> 8.03 | D48: =IF(U_Sort!B48="z","",U_Sort!C48 & " = "&U_Sort!B48) -> 
A49: 8.04 | D49: =IF(U_Sort!B49="z","",U_Sort!C49 & " = "&U_Sort!B49) -> 
A50: 8.05 | D50: =IF(U_Sort!B50="z","",U_Sort!C50 & " = "&U_Sort!B50) -> 
A51: 8.06 | D51: =IF(U_Sort!B51="z","",U_Sort!C51 & " = "&U_Sort!B51) -> 
A52: 8.07 | D52: =IF(U_Sort!B52="z","",U_Sort!C52 & " = "&U_Sort!B52) -> 
A53: 8.08 | D53: =IF(U_Sort!B53="z","",U_Sort!C53 & " = "&U_Sort!B53) -> 
A54: 8.09 | D54: =IF(U_Sort!B54="z","",U_Sort!C54 & " = "&U_Sort!B54) -> 
A55: 8.10 | D55: =IF(U_Sort!B55="z","",U_Sort!C55 & " = "&U_Sort!B55) -> 
A56: 8.11 | D56: =IF(U_Sort!B56="z","",U_Sort!C56 & " = "&U_Sort!B56) -> 
A57: 8.12 | D57: =IF(U_Sort!B57="z","",U_Sort!C57 & " = "&U_Sort!B57) -> 
A58: 8.13 | D58: =IF(U_Sort!B58="z","",U_Sort!C58 & " = "&U_Sort!B58) -> 
A59: 8.14 | D59: =IF(U_Sort!B59="z","",U_Sort!C59 & " = "&U_Sort!B59) -> 
A60: 8.15 | D60: =IF(U_Sort!B60="z","",U_Sort!C60 & " = "&U_Sort!B60) -> 
A61: 8.16 | D61: =IF(U_Sort!B61="z","",U_Sort!C61 & " = "&U_Sort!B61) -> 
A62: 8.17 | D62: =IF(U_Sort!B62="z","",U_Sort!C62 & " = "&U_Sort!B62) -> 
A63: 8.18 | D63: =IF(U_Sort!B63="z","",U_Sort!C63 & " = "&U_Sort!B63) -> 
A64: 8.19 | D64: =IF(U_Sort!B64="z","",U_Sort!C64 & " = "&U_Sort!B64) -> 
A65: 8.20 | D65: =IF(U_Sort!B65="z","",U_Sort!C65 & " = "&U_Sort!B65) -> 
A66: 8.21 | D66: =IF(U_Sort!B66="z","",U_Sort!C66 & " = "&U_Sort!B66) -> 
A67: 8.22 | D67: =IF(U_Sort!B67="z","",U_Sort!C67 & " = "&U_Sort!B67) -> 
A68: 8.23 | D68: =IF(U_Sort!B68="z","",U_Sort!C68 & " = "&U_Sort!B68) -> 
A69: 8.24 | D69: =IF(U_Sort!B69="z","",U_Sort!C69 & " = "&U_Sort!B69) -> 
A70: 8.25 | D70: =IF(U_Sort!B70="z","",U_Sort!C70 & " = "&U_Sort!B70) -> 
A71: 8.26 | D71: =IF(U_Sort!B71="z","",U_Sort!C71 & " = "&U_Sort!B71) -> 
A72: 8.27 | D72: =IF(U_Sort!B72="z","",U_Sort!C72 & " = "&U_Sort!B72) -> 
A73: 8.28 | D73: =IF(U_Sort!B73="z","",U_Sort!C73 & " = "&U_Sort!B73) -> 
A74: 8.29 | D74: =IF(U_Sort!B74="z","",U_Sort!C74 & " = "&U_Sort!B74) -> 
A75: 8.30 | D75: =IF(U_Sort!B75="z","",U_Sort!C75 & " = "&U_Sort!B75) -> 
A76: 9 | B76: ="Question "&A76 -> Question 9 | C76: =VLOOKUP(A76,Uni,3,FALSE) -> Did this unit pass clearance on windowsills on the FIRST TRY? | D76: - not entered - | G76: =IF(D76="- not entered -",0,1) -> 0
A77: 10 | B77: ="Question "&A77 -> Question 10 | C77: =VLOOKUP(A77,Uni,3,FALSE) -> Did this unit pass clearance on windowsills on the SECOND TRY? | D77: - not entered - | G77: =IF(D77="- not entered -",0,1) -> 0
A78: 11 | B78: ="Question "&A78 -> Question 11 | C78: =VLOOKUP(A78,Uni,3,FALSE) -> Please identify the type of action taken to achieve clearance on windowsills in this unit AFTER ONE OR MORE CLEARANCE FAILURES: | D78: =IF(I78=1,"- not applicable -",IF(U_Sort!B78="z","- not entered -",U_Sort!B78)) -> - not entered - | G78: =IF(D78="- not entered -",0,1) -> 0 | I78: 0 | J78: <---This cell used to mark display as not applicable
A79: =A78+0.02 -> 11.02 | D79: =IF(U_Sort!B79="z","",U_Sort!B79) -> 
A80: =A79+0.01 -> 11.03 | D80: =IF(U_Sort!B80="z","",U_Sort!B80) -> 
A81: =A80+0.01 -> 11.04 | D81: =IF(U_Sort!B81="z","",U_Sort!B81) -> 
A82: 12 | B82: ="Question "&A82 -> Question 12 | C82: =VLOOKUP(A82,Uni,3,FALSE) -> Identify the number of FINAL windowsill dust wipe clearance samples that were collected in this unit: | D82: - not entered - | G82: =IF(D82="- not entered -",0,1) -> 0
A83: 13 | B83: ="Question "&A83 -> Question 13 | C83: =VLOOKUP(A83,Uni,3,FALSE) -> Please enter the loading levels (µg/ft²) for each of the FINAL windowsill dust wipe clearance samples: | D83: =IF(U_Sort!B83="z","- not entered -",U_Sort!C83 & " = "&U_Sort!B83) -> - not entered - | G83: =IF(D83="- not entered -",0,1) -> 0
A84: =A83+0.02 -> 13.02 | D84: =IF(U_Sort!B84="z","",U_Sort!C84 & " = "&U_Sort!B84) -> 
A85: =A84+0.01 -> 13.03 | D85: =IF(U_Sort!B85="z","",U_Sort!C85 & " = "&U_Sort!B85) -> 
A86: 13.04 | D86: =IF(U_Sort!B86="z","",U_Sort!C86 & " = "&U_Sort!B86) -> 
A87: 13.05 | D87: =IF(U_Sort!B87="z","",U_Sort!C87 & " = "&U_Sort!B87) -> 
A88: 13.06 | D88: =IF(U_Sort!B88="z","",U_Sort!C88 & " = "&U_Sort!B88) -> 
A89: 13.07 | D89: =IF(U_Sort!B89="z","",U_Sort!C89 & " = "&U_Sort!B89) -> 
A90: 13.08 | D90: =IF(U_Sort!B90="z","",U_Sort!C90 & " = "&U_Sort!B90) -> 
A91: 13.09 | D91: =IF(U_Sort!B91="z","",U_Sort!C91 & " = "&U_Sort!B91) -> 
A92: 13.10 | D92: =IF(U_Sort!B92="z","",U_Sort!C92 & " = "&U_Sort!B92) -> 
A93: 13.11 | D93: =IF(U_Sort!B93="z","",U_Sort!C93 & " = "&U_Sort!B93) -> 
A94: 13.12 | D94: =IF(U_Sort!B94="z","",U_Sort!C94 & " = "&U_Sort!B94) -> 
A95: 13.13 | D95: =IF(U_Sort!B95="z","",U_Sort!C95 & " = "&U_Sort!B95) -> 
A96: 13.14 | D96: =IF(U_Sort!B96="z","",U_Sort!C96 & " = "&U_Sort!B96) -> 
A97: 13.15 | D97: =IF(U_Sort!B97="z","",U_Sort!C97 & " = "&U_Sort!B97) -> 
A98: 13.16 | D98: =IF(U_Sort!B98="z","",U_Sort!C98 & " = "&U_Sort!B98) -> 
A99: 13.17 | D99: =IF(U_Sort!B99="z","",U_Sort!C99 & " = "&U_Sort!B99) -> 
A100: 13.18 | D100: =IF(U_Sort!B100="z","",U_Sort!C100 & " = "&U_Sort!B100) -> 
A101: 13.19 | D101: =IF(U_Sort!B101="z","",U_Sort!C101 & " = "&U_Sort!B101) -> 
A102: 13.20 | D102: =IF(U_Sort!B102="z","",U_Sort!C102 & " = "&U_Sort!B102) -> 
A103: 13.21 | D103: =IF(U_Sort!B103="z","",U_Sort!C103 & " = "&U_Sort!B103) -> 
A104: 13.22 | D104: =IF(U_Sort!B104="z","",U_Sort!C104 & " = "&U_Sort!B104) -> 
A105: 13.23 | D105: =IF(U_Sort!B105="z","",U_Sort!C105 & " = "&U_Sort!B105) -> 
A106: 13.24 | D106: =IF(U_Sort!B106="z","",U_Sort!C106 & " = "&U_Sort!B106) -> 
A107: 13.25 | D107: =IF(U_Sort!B107="z","",U_Sort!C107 & " = "&U_Sort!B107) -> 
A108: 13.26 | D108: =IF(U_Sort!B108="z","",U_Sort!C108 & " = "&U_Sort!B108) -> 
A109: 13.27 | D109: =IF(U_Sort!B109="z","",U_Sort!C109 & " = "&U_Sort!B109) -> 
A110: 13.28 | D110: =IF(U_Sort!B110="z","",U_Sort!C110 & " = "&U_Sort!B110) -> 
A111: 13.29 | D111: =IF(U_Sort!B111="z","",U_Sort!C111 & " = "&U_Sort!B111) -> 
A112: 13.30 | D112: =IF(U_Sort!B112="z","",U_Sort!C112 & " = "&U_Sort!B112) -> 
A113: 14 | B113: ="Question "&A113 -> Question 14 | C113: =VLOOKUP(A113,Uni,3,FALSE) -> Did this unit pass clearance on window troughs on the FIRST TRY? | D113: - not entered - | G113: =IF(D113="- not entered -",0,1) -> 0
A114: 15 | B114: ="Question "&A114 -> Question 15 | C114: =VLOOKUP(A114,Uni,3,FALSE) -> Did this unit pass clearance on window troughs on the SECOND TRY? | D114: - not entered - | G114: =IF(D114="- not entered -",0,1) -> 0
A115: 16 | B115: ="Question "&A115 -> Question 16 | C115: =VLOOKUP(A115,Uni,3,FALSE) -> Please identify the type of action taken to achieve clearance on window troughs in this unit AFTER ONE OR MORE CLEARANCE FAILURES: | D115: =IF(I115=1,"- not applicable -",IF(U_Sort!B115="z","- not entered -",U_Sort!B115)) -> - not entered - | G115: =IF(D115="- not entered -",0,1) -> 0 | I115: 0 | J115: <---This cell used to mark display as not applicable
A116: =A115+0.02 -> 16.02 | D116: =IF(U_Sort!B116="z","",U_Sort!B116) -> 
A117: =A116+0.01 -> 16.03 | D117: =IF(U_Sort!B117="z","",U_Sort!B117) -> 
A118: =A117+0.01 -> 16.04 | D118: =IF(U_Sort!B118="z","",U_Sort!B118) -> 
A119: =A118+0.01 -> 16.05 | D119: =IF(U_Sort!B119="z","",U_Sort!B119) -> 
A120: 17 | B120: ="Question "&A120 -> Question 17 | C120: =VLOOKUP(A120,Uni,3,FALSE) -> How many FINAL window trough dust wipe clearance samples were collected in this unit ? | D120: - not entered - | G120: =IF(D120="- not entered -",0,1) -> 0
A121: 18 | B121: ="Question "&A121 -> Question 18 | C121: =VLOOKUP(A121,Uni,3,FALSE) -> Please enter the loading levels (µg/ft²) for each of the FINAL window trough dust wipe clearance samples: | D121: =IF(U_Sort!B121="z","- not entered -",U_Sort!C121 & " = "&U_Sort!B121) -> - not entered - | G121: =IF(D121="- not entered -",0,1) -> 0
A122: =A121+0.02 -> 18.02 | D122: =IF(U_Sort!B122="z","",U_Sort!C122 & " = "&U_Sort!B122) -> 
A123: =A122+0.01 -> 18.03 | D123: =IF(U_Sort!B123="z","",U_Sort!C123 & " = "&U_Sort!B123) -> 
A124: 18.04 | D124: =IF(U_Sort!B124="z","",U_Sort!C124 & " = "&U_Sort!B124) -> 
A125: 18.05 | D125: =IF(U_Sort!B125="z","",U_Sort!C125 & " = "&U_Sort!B125) -> 
A126: 18.06 | D126: =IF(U_Sort!B126="z","",U_Sort!C126 & " = "&U_Sort!B126) -> 
A127: 18.07 | D127: =IF(U_Sort!B127="z","",U_Sort!C127 & " = "&U_Sort!B127) -> 
A128: 18.08 | D128: =IF(U_Sort!B128="z","",U_Sort!C128 & " = "&U_Sort!B128) -> 
A129: 18.09 | D129: =IF(U_Sort!B129="z","",U_Sort!C129 & " = "&U_Sort!B129) -> 
A130: 18.10 | D130: =IF(U_Sort!B130="z","",U_Sort!C130 & " = "&U_Sort!B130) -> 
A131: 18.11 | D131: =IF(U_Sort!B131="z","",U_Sort!C131 & " = "&U_Sort!B131) -> 
A132: 18.12 | D132: =IF(U_Sort!B132="z","",U_Sort!C132 & " = "&U_Sort!B132) -> 
A133: 18.13 | D133: =IF(U_Sort!B133="z","",U_Sort!C133 & " = "&U_Sort!B133) -> 
A134: 18.14 | D134: =IF(U_Sort!B134="z","",U_Sort!C134 & " = "&U_Sort!B134) -> 
A135: 18.15 | D135: =IF(U_Sort!B135="z","",U_Sort!C135 & " = "&U_Sort!B135) -> 
A136: 18.16 | D136: =IF(U_Sort!B136="z","",U_Sort!C136 & " = "&U_Sort!B136) -> 
A137: 18.17 | D137: =IF(U_Sort!B137="z","",U_Sort!C137 & " = "&U_Sort!B137) -> 
A138: 18.18 | D138: =IF(U_Sort!B138="z","",U_Sort!C138 & " = "&U_Sort!B138) -> 
A139: 18.19 | D139: =IF(U_Sort!B139="z","",U_Sort!C139 & " = "&U_Sort!B139) -> 
A140: 18.20 | D140: =IF(U_Sort!B140="z","",U_Sort!C140 & " = "&U_Sort!B140) -> 
A141: 18.21 | D141: =IF(U_Sort!B141="z","",U_Sort!C141 & " = "&U_Sort!B141) -> 
A142: 18.22 | D142: =IF(U_Sort!B142="z","",U_Sort!C142 & " = "&U_Sort!B142) -> 
A143: 18.23 | D143: =IF(U_Sort!B143="z","",U_Sort!C143 & " = "&U_Sort!B143) -> 
A144: 18.24 | D144: =IF(U_Sort!B144="z","",U_Sort!C144 & " = "&U_Sort!B144) -> 
A145: 18.25 | D145: =IF(U_Sort!B145="z","",U_Sort!C145 & " = "&U_Sort!B145) -> 
A146: 18.26 | D146: =IF(U_Sort!B146="z","",U_Sort!C146 & " = "&U_Sort!B146) -> 
A147: 18.27 | D147: =IF(U_Sort!B147="z","",U_Sort!C147 & " = "&U_Sort!B147) -> 
A148: 18.28 | D148: =IF(U_Sort!B148="z","",U_Sort!C148 & " = "&U_Sort!B148) -> 
A149: 18.29 | D149: =IF(U_Sort!B149="z","",U_Sort!C149 & " = "&U_Sort!B149) -> 
D150: =IF(U_Sort!B150="z","",U_Sort!C150 & " = "&U_Sort!B150) -> 

Sheet G (hidden)
A1: G. This sheet holds the text for asking the general (non-unit specific) questions
A2: NOTE: This sheet will be hidden from grantees
A8: name=GEN
A9: Q # | B9: Form Header Title | C9: Slightly Worded Questions for use inside the "Unit No." Sheet that holds the questions (The displayed entry Form uses the original question) | D9: Full Question | E9: Pick List options | F9: Code | G9: Notes
A10: 0 | G10: not currently used
A11: 1 | B11: Who Are You? | C11: Regarding this HUD Lead Hazard Control grant, please indicate your organization type: | D11: Regarding this HUD Lead Hazard Control grant, please indicate (check one) whether your organization is: | E11: a. The grantee | F11: 1 | M11: Who Are You?
A12: 1.1 | E12: b. A subgrantee | F12: 2
A13: 1.2 | E13: c. A contractor to the grantee or a subgrantee | F13: 3
A14: 2 | B14: Identify Your Organization Type | C14: Please indicate the category that best describes your organization: | D14: Please indicate (check one) the category that best describes your organization: | E14: a. State/local health department | F14: 1 | M14: Identify Your Organization Type
A15: 2.1 | E15: b. State/local community development, or economic development department | F15: 2
A16: 2.2 | E16: c. State/local community buildings or housing development department | F16: 3
A17: 2.3 | E17: d. Non-governmental organization | F17: 4
A18: 2.4 | E18: e. Certified abatement contractor | F18: 5
A19: 2.5 | E19: f. Certified renovation firm | F19: 6
A20: 2.6 | E20: g. Risk assessment firm | F20: 7
A21: 2.7 | E21: h. Other | F21: 8
A22: 3 | B22: Identify Unit Recruitment Triggers | C22: What triggers recruitment of homes into the grant? | D22: What triggers recruitment of homes into the grant? (Please check all that apply) | E22: a. Abatement order from a Health Department as a result of a child with an elevated blood lead level | F22: 1 | M22: Identify Unit Recruitment Triggers
A23: 3.1 | E23: b. Notice from a Health Department of a child with an elevated blood lead level | F23: 2
A24: 3.2 | E24: c. Building code, housing code, or other code violation | F24: 3
A25: 3.3 | E25: d. Combining lead hazard control work with other rehabilitation or modernization work | F25: 4
A26: 3.4 | E26: e. Transfer of ownership or occupancy | F26: 5
A27: 3.5 | E27: f. Lead dust levels in the home are above the lead hazard standards | F27: 6
A28: 3.6 | E28: g. Presence of deteriorated lead-based paint in the home | F28: 7
A29: 3.7 | E29: h. Neighborhood characteristics | F29: 8
A30: 3.8 | E30: i. Outreach and recruiting drives. | F30: 9
A31: 3.9 | E31: j. Other | F31: 10
A32: 4 | B32: Rank Your Recruitment Triggers | C32: Please rank unit recruitment triggers by frequency with most frequent at the top of the list. | D32: The list below shows your selections on what triggers recruitment of homes. Please rank these triggers by frequency of occurance placing the most frequent trigger at the top and least frequent at the bottom of the list. To move a trigger, click to highlight it and click the Move UP or Move Down buttons to move it within the List: | G32: If you selected more than one trigger in the previous question, please rank the (up to three) most frequent triggers (1 = most frequent trigger, for example, a, or b, or c, etc.). | M32: Rank Your Recruitment Triggers
A42: 5 | B42: Total Numbers of Units Receiving Clearance Testing | C42: =D42 -> On how many dwelling units have you performed lead hazard control work and clearance testing in the past 12 months? | D42: On how many dwelling units have you performed lead hazard control work and clearance testing in the past 12 months? | M42: Total Numbers of Units Receiving Clearance Testing
A43: 6 | B43: Identify Your Lab Reporting Limit for Floor Clearance Samples | C43: =D43 -> What is the reporting limit of your laboratory for floor lead dust wipe samples in µg/ft² (generally indicated by a less-than sign (<) preceding the laboratory reported result)? | D43: What is the reporting limit of your laboratory for floor lead dust wipe samples in µg/ft² (generally indicated by a less-than sign (<) preceding the laboratory reported result)? | M43: Identify Your Lab Reporting Limit for Floor Clearance Samples

Sheet G_Sort (hidden)
A1: G_Sort. This sheet holds the list of triggers for General question 3 &4; It is filled in by Macro
A2: NOTE: This sheet will be hidden from grantees
B3: Note : The number in the A col is the number of picks selected (used for storing the data) | F3: LookupList for Pick Codes: Name=TrigCode
B13: z
B14: z
B15: z
B16: z
B17: z
B18: z
B19: z
B20: z
B21: picks | C21: Codes | D21: 1ST Char | F21: Left Char | G21: code
A22: =COUNTA(B22:B31)-COUNTIF(B22:B31,"z") -> 0 | B22: z | C22: =VLOOKUP(D22,TrigCode,2,FALSE) -> 0 | D22: =LEFT(B22,1) -> z | F22: a | G22: 1
B23: z | C23: 0 | D23: z | F23: b | G23: 2
B24: z | C24: 0 | D24: z | F24: c | G24: 3
B25: z | C25: 0 | D25: z | F25: d | G25: 4
B26: z | C26: 0 | D26: z | F26: e | G26: 5
B27: z | C27: 0 | D27: z | F27: f | G27: 6
B28: z | C28: 0 | D28: z | F28: g | G28: 7
B29: z | C29: 0 | D29: z | F29: h | G29: 8
B30: z | C30: 0 | D30: z | F30: i | G30: 9
B31: z | C31: 0 | D31: z | F31: j | G31: 10
B32: z | C32: =VLOOKUP(D32,TrigCode,2,FALSE) -> 0 | D32: =LEFT(B32,1) -> z | F32: z | G32: 0
B33: z | C33: 0 | D33: =LEFT(B33,1) -> z
B34: z | C34: 0 | D34: z
B35: z | C35: 0 | D35: z
B36: z | C36: 0 | D36: z
B37: z | C37: 0 | D37: z
B38: z | C38: 0 | D38: z
B39: z | C39: 0 | D39: z
B40: z | C40: 0 | D40: z
B41: z | C41: 0 | D41: z

Sheet U (hidden)
A1: U. This sheet holds the text for asking the Unit-specific questions
A2: NOTE: This sheet will be hidden from grantees
A8: name=Uni | C8: * Unit Address is used for title
A9: Q # | B9: Form Header Title* | C9: Slightly Worded Questions for use inside the "Unit No." Sheet that holds the questions (The displayed entry Form uses the original question) | D9: Original Question | E9: Pick List options | F9: Code | G9: Notes
A10: 0 | G10: not currently used
A11: 1 | C11: Please identify the type of dwelling: | D11: Please identify the type of dwelling (check one): | E11: a. Detached Single Family House | F11: 1
A12: =A11+0.02 -> 1.02 | E12: b. Duplex/Triplex | F12: 2
A13: =A12+0.01 -> 1.03 | E13: c. Row House/Town House | F13: 3
A14: =A13+0.01 -> 1.04 | E14: d. Low Rise Apartment (1-3 Floors) | F14: 4
A15: =A14+0.01 -> 1.05 | E15: e. High Rise Apartment (>3 Floors) | F15: 5
A16: =A15+0.01 -> 1.06 | E16: f. Mobile/Manufactured Home | F16: 6
A17: =A16+0.01 -> 1.07 | E17: g. Other | F17: 13
A18: 2 | C18: Please identify the construction date of this unit: | D18: Please identify the construction date of this unit (check one): | E18: a. 1990 to Present | F18: 1
A19: =A18+0.02 -> 2.02 | E19: b. Between 1978 and 1989 | F19: 2
A20: =A19+0.01 -> 2.03 | E20: c. Between 1960 and 1977 | F20: 3
A21: =A20+0.01 -> 2.04 | E21: d. Between 1946 and 1959 | F21: 4
A22: =A21+0.01 -> 2.05 | E22: e. Between 1940 and 1945 | F22: 5
A23: =A22+0.01 -> 2.06 | E23: f. 1939 or Before | F23: 6
A24: =A23+0.01 -> 2.07 | E24: g. Don’t Know | F24: 7
A25: 3 | C25: After conducting lead hazard control in this unit, what cleaning or other procedures did you use to reduce/eliminate remaining lead dust hazards before clearance testing ? | D25: After conducting lead hazard control in this unit, what cleaning or other procedures did you use to reduce/eliminate remaining lead dust hazards before clearance testing (check all that apply)?" | E25: a. HEPA vacuuming | F25: 1
A26: =A25+0.02 -> 3.02 | E26: b. HEPA/Wet wash/HEPA cycle | F26: 2
A27: =A26+0.01 -> 3.03 | E27: c. Wet detergent wash using trisodium phosphate | F27: 3
A28: 3.04 | E28: d. Wet detergent wash using a general purpose cleaner | F28: 4
A29: 3.05 | E29: e. Seal flooring | F29: 5
A30: 3.06 | E30: f. Overlay flooring | F30: 6
A31: 3.07 | E31: g. Replace flooring | F31: 7
A32: 3.08 | E32: h. Seal windowsills | F32: 8
A33: 3.09 | E33: i. Seal window troughs | F33: 9
A34: 3.10 | E34: j. Install window trough liners | F34: 10
A35: 3.11 | E35: k. Other | F35: 11
A36: 3.12
A37: 3.13
A38: 4 | C38: Did this unit pass clearance on floors on the FIRST TRY? | D38: Did this unit pass clearance on floors on the FIRST TRY?
A39: 5 | C39: Did this unit pass clearance on floors on the SECOND TRY? | D39: Did this unit pass clearance on floors on the SECOND TRY? | G39: skip this Q if Q4=Yes
A40: 6 | C40: Please identify the type of action taken to achieve clearance on floors in this unit AFTER ONE OR MORE CLEARANCE FAILURES​: | D40: Please identify the type of action taken to achieve clearance on floors in this unit AFTER ONE OR MORE CLEARANCE FAILURES​ (check all that apply) | E40: a. Re-cleaning | F40: 1 | G40: Skip this Q if Q5=Yes | H40: removed the "only" from (a)
A41: =A40+0.02 -> 6.02 | E41: b. Sealing | F41: 2
A42: =A41+0.01 -> 6.03 | E42: c. Replacement | F42: 3
A43: =A42+0.01 -> 6.04 | E43: d. Overlaying | F43: 4
A44: =A43+0.01 -> 6.05 | E44: e. Other | F44: 13
A45: 7 | C45: Please identify the number of FINAL floor dust wipe clearance samples that were collected in this unit: | D45: How many FINAL floor dust wipe clearance samples were collected in this unit ("FINAL" means those passing clearance levels, not those failing to pass clearance)? | G45: skip this if Q5=no
A46: 8 | C46: Please enter the loading levels (µg/ft²) for each of the FINAL floor dust wipe clearance samples: | D46: Please enter the loading levels (µg/ft²) for each of the FINAL floor dust wipe clearance samples: | G46: Based on your answer to the previous question, a total of | H46: samples will need to be entered. A separate entry box will appear for each sample. These are numbered Sample 1 through | I46: . Please Note that you must enter numbers!
A47: =A46+0.02 -> 8.02
A48: =A47+0.01 -> 8.03
A49: 8.04
A50: 8.05
A51: 8.06
A52: 8.07
A53: 8.08
A54: 8.09
A55: 8.1
A56: 8.11
A57: 8.12
A58: 8.13
A59: 8.14
A60: 8.15
A61: 8.16
A62: 8.17
A63: 8.18
A64: 8.19
A65: 8.2
A66: 8.21
A67: 8.22
A68: 8.23
A69: 8.24
A70: 8.25
A71: 8.26
A72: 8.27
A73: 8.28
A74: 8.29
A75: 8.30
A76: 9 | C76: Did this unit pass clearance on windowsills on the FIRST TRY? | D76: Did this unit pass clearance on windowsills on the FIRST TRY?
A77: 10 | C77: Did this unit pass clearance on windowsills on the SECOND TRY? | D77: Did this unit pass clearance on windowsills on the SECOND TRY?
A78: 11 | C78: Please identify the type of action taken to achieve clearance on windowsills in this unit AFTER ONE OR MORE CLEARANCE FAILURES: | D78: Please identify the type of action taken to achieve clearance on windowsills in this unit AFTER ONE OR MORE CLEARANCE FAILURES (check all that apply): | E78: a. Re-cleaning | F78: 1 | H78: removed the "only" from (a)
A79: =A78+0.02 -> 11.02 | E79: b. Sealing | F79: 2
A80: =A79+0.01 -> 11.03 | E80: c. Replacement | F80: 3
A81: =A80+0.01 -> 11.04 | E81: d. Other | F81: 13
A82: 12 | C82: Identify the number of FINAL windowsill dust wipe clearance samples that were collected in this unit: | D82: How many FINAL windowsill dust wipe clearance samples were collected in this unit ("FINAL" means those passing clearance levels, not those failing to pass clearance)?
A83: 13 | C83: Please enter the loading levels (µg/ft²) for each of the FINAL windowsill dust wipe clearance samples: | D83: Please enter the loading levels (µg/ft²) for each of the FINAL windowsill dust wipe clearance samples: | G83: Based on your answer to the previous question, a total of | H83: samples will need to be entered. A separate entry box will appear for each sample. These are numbered Sample 1 through | I83: . Please Note that you must enter numbers!
A84: =A83+0.02 -> 13.02
A85: =A84+0.01 -> 13.03
A86: 13.04
A87: 13.05
A88: 13.06
A89: 13.07
A90: 13.08
A91: 13.09
A92: 13.10
A93: 13.11
A94: 13.12
A95: 13.13
A96: 13.14
A97: 13.15
A98: 13.16
A99: 13.17
A100: 13.18
A101: 13.19
A102: 13.20
A103: 13.21
A104: 13.22
A105: 13.23
A106: 13.24
A107: 13.25
A108: 13.26
A109: 13.27
A110: 13.28
A111: 13.29
A112: 13.30
A113: 14 | C113: Did this unit pass clearance on window troughs on the FIRST TRY? | D113: Did this unit pass clearance on window troughs on the FIRST TRY?
A114: 15 | C114: Did this unit pass clearance on window troughs on the SECOND TRY? | D114: Did this unit pass clearance on window troughs on the SECOND TRY?
A115: 16 | C115: Please identify the type of action taken to achieve clearance on window troughs in this unit AFTER ONE OR MORE CLEARANCE FAILURES: | D115: Please identify the type of action taken to achieve clearance on window troughs in this unit AFTER ONE OR MORE CLEARANCE FAILURES (check all that apply): | E115: a. Re-cleaning | F115: 1 | H115: removed the "only" from (a)
A116: =A115+0.02 -> 16.02 | E116: b. Sealing | F116: 2
A117: =A116+0.01 -> 16.03 | E117: c. Replacement | F117: 3
A118: =A117+0.01 -> 16.04 | E118: d. Install trough liner | F118: 4
A119: =A118+0.01 -> 16.05 | E119: e. Other | F119: 7
A120: 17 | C120: How many FINAL window trough dust wipe clearance samples were collected in this unit ? | D120: How many FINAL window trough dust wipe clearance samples were collected in this unit ("FINAL" means those passing clearance levels, not those failing to pass clearance)?
A121: 18 | C121: Please enter the loading levels (µg/ft²) for each of the FINAL window trough dust wipe clearance samples: | D121: Please enter the loading levels (µg/ft²) for each of the FINAL window trough dust wipe clearance samples: | G121: Based on your answer to the previous question, a total of | H121: samples will need to be entered. A separate entry box will appear for each sample. These are numbered Sample 1 through | I121: . Please Note that you must enter numbers!
A122: =A121+0.02 -> 18.02
A123: =A122+0.01 -> 18.03
A124: 18.04
A125: 18.05
A126: 18.06
A127: 18.07
A128: 18.08
A129: 18.09
A130: 18.10
A131: 18.11
A132: 18.12
A133: 18.13
A134: 18.14
A135: 18.15
A136: 18.16
A137: 18.17
A138: 18.18
A139: 18.19
A140: 18.20
A141: 18.21
A142: 18.22
A143: 18.23
A144: 18.24
A145: 18.25
A146: 18.26
A147: 18.27
A148: 18.28
A149: 18.29
A150: 18.30

Sheet U_Sort (hidden)
A1: Unit_Sort. This sheet holds the lists of picks for various multi-item questions so they can be sorted to remove display gaps and to be moved to long-term storage; It is filled in by Macro
A2: NOTE: This sheet will be hidden from grantees
A3: Sheet is emptied by writing 'z' to cells in B column | H3: temp
B22: z
B23: z
B24: z | C24: Labels | D24: 1ST Char | F24: Picks for Q3
A25: =COUNTA(B25:B37)-COUNTIF(B25:B37,"z") -> 0 | B25: z | D25: =LEFT(B25,1) -> z | H25: =COUNTA(I25:I37)-COUNTIF(I25:I37,"z") -> 0
B26: z | D26: z
B27: z | D27: z
B28: z | D28: z
B29: z | D29: z
B30: z | D30: z
B31: z | D31: z
B32: z | D32: z
B33: z | D33: z
B34: z | D34: z
B35: z | D35: z
B36: z | D36: z
B37: z | D37: z
B38: z
B39: z | F39: Picks for Q6
A40: =COUNTA(B40:B44)-COUNTIF(B40:B44,"z") -> 0 | B40: z | D40: =LEFT(B40,1) -> z | H40: =COUNTA(I40:I44)-COUNTIF(I40:I44,"z") -> 0
B41: z | D41: =LEFT(B41,1) -> z
B42: z | D42: =LEFT(B42,1) -> z
B43: z | D43: =LEFT(B43,1) -> z
B44: z | D44: =LEFT(B44,1) -> z
B45: z | F45: Picks for Q8
A46: =COUNTA(B46:B75)-COUNTIF(B46:B75,"z") -> 0 | B46: z | C46: ="FloorSample "&E46 -> FloorSample 1 | D46: =LEFT(B46,1) -> z | E46: 1 | H46: =COUNTA(I46:I75)-COUNTIF(I46:I75,"z") -> 0
B47: z | C47: ="FloorSample "&E47 -> FloorSample 2 | D47: =LEFT(B47,1) -> z | E47: =E46+1 -> 2
B48: z | C48: FloorSample 3 | D48: z | E48: =E47+1 -> 3
B49: z | C49: FloorSample 4 | D49: z | E49: 4
B50: z | C50: FloorSample 5 | D50: z | E50: 5
B51: z | C51: FloorSample 6 | D51: z | E51: 6
B52: z | C52: FloorSample 7 | D52: z | E52: 7
B53: z | C53: FloorSample 8 | D53: z | E53: 8
B54: z | C54: FloorSample 9 | D54: z | E54: 9
B55: z | C55: FloorSample 10 | D55: z | E55: 10
B56: z | C56: FloorSample 11 | D56: z | E56: 11
B57: z | C57: FloorSample 12 | D57: z | E57: 12
B58: z | C58: FloorSample 13 | D58: z | E58: 13
B59: z | C59: FloorSample 14 | D59: z | E59: 14
B60: z | C60: FloorSample 15 | D60: z | E60: 15
B61: z | C61: FloorSample 16 | D61: z | E61: 16
B62: z | C62: FloorSample 17 | D62: z | E62: 17
B63: z | C63: FloorSample 18 | D63: z | E63: 18
B64: z | C64: FloorSample 19 | D64: z | E64: 19
B65: z | C65: FloorSample 20 | D65: z | E65: 20
B66: z | C66: FloorSample 21 | D66: z | E66: 21
B67: z | C67: FloorSample 22 | D67: z | E67: 22
B68: z | C68: FloorSample 23 | D68: z | E68: 23
B69: z | C69: FloorSample 24 | D69: z | E69: 24
B70: z | C70: FloorSample 25 | D70: z | E70: 25
B71: z | C71: FloorSample 26 | D71: z | E71: 26
B72: z | C72: FloorSample 27 | D72: z | E72: 27
B73: z | C73: FloorSample 28 | D73: z | E73: 28
B74: z | C74: FloorSample 29 | D74: z | E74: 29
B75: z | C75: FloorSample 30 | D75: z | E75: 30
B76: z
B77: z | F77: Picks for Q11
A78: =COUNTA(B78:B81)-COUNTIF(B78:B81,"z") -> 0 | B78: z | D78: =LEFT(B78,1) -> z | H78: =COUNTA(I78:I81)-COUNTIF(I78:I81,"z") -> 0
B79: z | D79: =LEFT(B79,1) -> z
B80: z | D80: =LEFT(B80,1) -> z
B81: z | D81: =LEFT(B81,1) -> z
B82: z | F82: Picks for Q13
A83: =COUNTA(B83:B112)-COUNTIF(B83:B112,"z") -> 0 | B83: z | C83: ="WindowSillSample "&E83 -> WindowSillSample 1 | D83: =LEFT(B83,1) -> z | E83: 1 | H83: =COUNTA(I83:I112)-COUNTIF(I83:I112,"z") -> 0
B84: z | C84: ="WindowSillSample "&E84 -> WindowSillSample 2 | D84: =LEFT(B84,1) -> z | E84: =E83+1 -> 2
B85: z | C85: WindowSillSample 3 | D85: z | E85: =E84+1 -> 3
B86: z | C86: WindowSillSample 4 | D86: z | E86: 4
B87: z | C87: WindowSillSample 5 | D87: z | E87: 5
B88: z | C88: WindowSillSample 6 | D88: z | E88: 6
B89: z | C89: WindowSillSample 7 | D89: z | E89: 7
B90: z | C90: WindowSillSample 8 | D90: z | E90: 8
B91: z | C91: WindowSillSample 9 | D91: z | E91: 9
B92: z | C92: WindowSillSample 10 | D92: z | E92: 10
B93: z | C93: WindowSillSample 11 | D93: z | E93: 11
B94: z | C94: WindowSillSample 12 | D94: z | E94: 12
B95: z | C95: WindowSillSample 13 | D95: z | E95: 13
B96: z | C96: WindowSillSample 14 | D96: z | E96: 14
B97: z | C97: WindowSillSample 15 | D97: z | E97: 15
B98: z | C98: WindowSillSample 16 | D98: z | E98: 16
B99: z | C99: WindowSillSample 17 | D99: z | E99: 17
B100: z | C100: WindowSillSample 18 | D100: z | E100: 18
B101: z | C101: WindowSillSample 19 | D101: z | E101: 19
B102: z | C102: WindowSillSample 20 | D102: z | E102: 20
B103: z | C103: WindowSillSample 21 | D103: z | E103: 21
B104: z | C104: WindowSillSample 22 | D104: z | E104: 22
B105: z | C105: WindowSillSample 23 | D105: z | E105: 23
B106: z | C106: WindowSillSample 24 | D106: z | E106: 24
B107: z | C107: WindowSillSample 25 | D107: z | E107: 25
B108: z | C108: WindowSillSample 26 | D108: z | E108: 26
B109: z | C109: WindowSillSample 27 | D109: z | E109: 27
B110: z | C110: WindowSillSample 28 | D110: z | E110: 28
B111: z | C111: WindowSillSample 29 | D111: z | E111: 29
B112: z | C112: WindowSillSample 30 | D112: z | E112: 30
B113: z
B114: z | F114: Picks for Q16
A115: =COUNTA(B115:B119)-COUNTIF(B115:B119,"z") -> 0 | B115: z | D115: =LEFT(B115,1) -> z | H115: =COUNTA(I115:I119)-COUNTIF(I115:I119,"z") -> 0
B116: z | D116: =LEFT(B116,1) -> z
B117: z | D117: =LEFT(B117,1) -> z
B118: z | D118: =LEFT(B118,1) -> z
B119: z | D119: =LEFT(B119,1) -> z
B120: z | F120: Picks for Q18
A121: =COUNTA(B121:B150)-COUNTIF(B121:B150,"z") -> 0 | B121: z | C121: ="WindowTroughSample "&E121 -> WindowTroughSample 1 | D121: =LEFT(B121,1) -> z | E121: 1 | H121: =COUNTA(I121:I150)-COUNTIF(I121:I150,"z") -> 0
B122: z | C122: ="WindowTroughSample "&E122 -> WindowTroughSample 2 | D122: =LEFT(B122,1) -> z | E122: =E121+1 -> 2
B123: z | C123: ="WindowTroughSample "&E123 -> WindowTroughSample 3 | D123: z | E123: =E122+1 -> 3
B124: z | C124: WindowTroughSample 4 | D124: z | E124: 4
B125: z | C125: WindowTroughSample 5 | D125: z | E125: 5
B126: z | C126: WindowTroughSample 6 | D126: z | E126: 6
B127: z | C127: WindowTroughSample 7 | D127: z | E127: 7
B128: z | C128: WindowTroughSample 8 | D128: z | E128: 8
B129: z | C129: WindowTroughSample 9 | D129: z | E129: 9
B130: z | C130: WindowTroughSample 10 | D130: z | E130: 10
B131: z | C131: WindowTroughSample 11 | D131: z | E131: 11
B132: z | C132: WindowTroughSample 12 | D132: z | E132: 12
B133: z | C133: WindowTroughSample 13 | D133: z | E133: 13
B134: z | C134: WindowTroughSample 14 | D134: z | E134: 14
B135: z | C135: WindowTroughSample 15 | D135: z | E135: 15
B136: z | C136: WindowTroughSample 16 | D136: z | E136: 16
B137: z | C137: WindowTroughSample 17 | D137: z | E137: 17
B138: z | C138: WindowTroughSample 18 | D138: z | E138: 18
B139: z | C139: WindowTroughSample 19 | D139: z | E139: 19
B140: z | C140: WindowTroughSample 20 | D140: z | E140: 20
B141: z | C141: WindowTroughSample 21 | D141: z | E141: 21
B142: z | C142: WindowTroughSample 22 | D142: z | E142: 22
B143: z | C143: WindowTroughSample 23 | D143: z | E143: 23
B144: z | C144: WindowTroughSample 24 | D144: z | E144: 24
B145: z | C145: WindowTroughSample 25 | D145: z | E145: 25
B146: z | C146: WindowTroughSample 26 | D146: z | E146: 26
B147: z | C147: WindowTroughSample 27 | D147: z | E147: 27
B148: z | C148: WindowTroughSample 28 | D148: z | E148: 28
B149: z | C149: WindowTroughSample 29 | D149: z | E149: 29
B150: z | C150: WindowTroughSample 30 | D150: z | E150: 30

Sheet PrintGQs (hidden)
A1: PrintGQs. This sheet, used for printing, holds the text for asking the general (non-unit specific) questions
A2: NOTE: This sheet will be hidden from grantees
A8: LEAD CLEARANCE QUESTIONNAIRE: General Questions
A9: [For information only - NOT to be used to submit answers to QuanTech or HUD]
A10: Question | C10: Pick List options
A11: Question 1 | B11: =G!D11 -> Regarding this HUD Lead Hazard Control grant, please indicate (check one) whether your organization is: | C11: a. The grantee
C12: b. A subgrantee
C13: c. A contractor to the grantee or a subgrantee
A14: Question 2 | B14: =G!D14 -> Please indicate (check one) the category that best describes your organization: | C14: a. State/local health department
C15: b. State/local community development, or economic development department
C16: c. State/local community buildings or housing development department
C17: d. Non-governmental organization
C18: e. Certified abatement contractor
C19: f. Certified renovation firm
C20: g. Risk assessment firm
C21: h. Other
A22: Question 3 | B22: =G!D22 -> What triggers recruitment of homes into the grant? (Please check all that apply) | C22: a. Abatement order from a Health Department as a result of a child with an elevated blood lead level
C23: b. Notice from a Health Department of a child with an elevated blood lead level
C24: c. Building code, housing code, or other code violation
C25: d. Combining lead hazard control work with other rehabilitation or modernization work
C26: e. Transfer of ownership or occupancy
C27: f. Lead dust levels in the home are above the lead hazard standards
C28: g. Presence of deteriorated lead-based paint in the home
C29: h. Neighborhood characteristics
C30: i. Outreach and recruiting drives.
C31: j. Other
A32: Question 4 | B32: =G!D32 -> The list below shows your selections on what triggers recruitment of homes. Please rank these triggers by frequency of occurance placing the most frequent trigger at the top and least frequent at the bottom of the list. To move a trigger, click to highlight it and click the Move UP or Move Down buttons to move it within the List: | C32: ** Same pick list as Question 3 above**
A42: Question 5 | B42: On how many dwelling units have you performed lead hazard control work and clearance testing in the past 12 months?
A43: Question 6 | B43: What is the reporting limit of your laboratory for floor lead dust wipe samples in µg/ft² (generally indicated by a less-than sign (<) preceding the laboratory reported result)?

Sheet PrintUQs (hidden)
A1: PrintUQs. This sheet, used for printing, holds the text for asking the unit-specific questions
A2: NOTE: This sheet will be hidden from grantees
A8: LEAD CLEARANCE QUESTIONNAIRE: Unit-Specific Questions
A9: [For information only - NOT to be used to submit answers to QuanTech or HUD]
A10: Question | C10: Pick List options
A11: Question 1 | B11: =U!D11 -> Please identify the type of dwelling (check one): | C11: =U!E11 -> a. Detached Single Family House
C12: =U!E12 -> b. Duplex/Triplex
C13: =U!E13 -> c. Row House/Town House
C14: =U!E14 -> d. Low Rise Apartment (1-3 Floors)
C15: =U!E15 -> e. High Rise Apartment (>3 Floors)
C16: =U!E16 -> f. Mobile/Manufactured Home
C17: =U!E17 -> g. Other
A18: Question 2 | B18: =U!D18 -> Please identify the construction date of this unit (check one): | C18: =U!E18 -> a. 1990 to Present
C19: =U!E19 -> b. Between 1978 and 1989
C20: =U!E20 -> c. Between 1960 and 1977
C21: =U!E21 -> d. Between 1946 and 1959
C22: =U!E22 -> e. Between 1940 and 1945
C23: =U!E23 -> f. 1939 or Before
C24: =U!E24 -> g. Don’t Know
A25: Question 3 | B25: =U!D25 -> After conducting lead hazard control in this unit, what cleaning or other procedures did you use to reduce/eliminate remaining lead dust hazards before clearance testing (check all that apply)?" | C25: =U!E25 -> a. HEPA vacuuming
C26: =U!E26 -> b. HEPA/Wet wash/HEPA cycle
C27: =U!E27 -> c. Wet detergent wash using trisodium phosphate
C28: =U!E28 -> d. Wet detergent wash using a general purpose cleaner
C29: =U!E29 -> e. Seal flooring
C30: =U!E30 -> f. Overlay flooring
C31: =U!E31 -> g. Replace flooring
C32: =U!E32 -> h. Seal windowsills
C33: =U!E33 -> i. Seal window troughs
C34: =U!E34 -> j. Install window trough liners
C35: =U!E35 -> k. Other
A38: Question 4 | B38: =U!D38 -> Did this unit pass clearance on floors on the FIRST TRY?
A39: Question 5 | B39: =U!D39 -> Did this unit pass clearance on floors on the SECOND TRY?
A40: Question 6 | B40: =U!D40 -> Please identify the type of action taken to achieve clearance on floors in this unit AFTER ONE OR MORE CLEARANCE FAILURES​ (check all that apply) | C40: =U!E40 -> a. Re-cleaning
C41: =U!E41 -> b. Sealing
C42: =U!E42 -> c. Replacement
C43: =U!E43 -> d. Overlaying
C44: =U!E44 -> e. Other
A45: Question 7 | B45: =U!D45 -> How many FINAL floor dust wipe clearance samples were collected in this unit ("FINAL" means those passing clearance levels, not those failing to pass clearance)?
A46: Question 8 | B46: =U!D46 -> Please enter the loading levels (µg/ft²) for each of the FINAL floor dust wipe clearance samples:
A76: Question 9 | B76: =U!D76 -> Did this unit pass clearance on windowsills on the FIRST TRY?
A77: Question 10 | B77: =U!D77 -> Did this unit pass clearance on windowsills on the SECOND TRY?
A78: Question 11 | B78: =U!D78 -> Please identify the type of action taken to achieve clearance on windowsills in this unit AFTER ONE OR MORE CLEARANCE FAILURES (check all that apply): | C78: =U!E78 -> a. Re-cleaning
C79: =U!E79 -> b. Sealing
C80: =U!E80 -> c. Replacement
C81: =U!E81 -> d. Other
A82: Question 12 | B82: =U!D82 -> How many FINAL windowsill dust wipe clearance samples were collected in this unit ("FINAL" means those passing clearance levels, not those failing to pass clearance)?
A83: Question 13 | B83: =U!D83 -> Please enter the loading levels (µg/ft²) for each of the FINAL windowsill dust wipe clearance samples:
A113: Question 14 | B113: =U!D113 -> Did this unit pass clearance on window troughs on the FIRST TRY?
A114: Question 15 | B114: =U!D114 -> Did this unit pass clearance on window troughs on the SECOND TRY?
A115: Question 16 | B115: =U!D115 -> Please identify the type of action taken to achieve clearance on window troughs in this unit AFTER ONE OR MORE CLEARANCE FAILURES (check all that apply): | C115: =U!E115 -> a. Re-cleaning
C116: =U!E116 -> b. Sealing
C117: =U!E117 -> c. Replacement
C118: =U!E118 -> d. Install trough liner
C119: =U!E119 -> e. Other
A120: Question 17 | B120: =U!D120 -> How many FINAL window trough dust wipe clearance samples were collected in this unit ("FINAL" means those passing clearance levels, not those failing to pass clearance)?
A121: Question 18 | B121: =U!D121 -> Please enter the loading levels (µg/ft²) for each of the FINAL window trough dust wipe clearance samples:

Sheet GData0 (hidden)
A1: GData0. Long-Term Storage of GEN_Q. This sheet holds all the answers to Unit Questions
C5: Completion Status (%)->
C6: Count of Entries in Col-> | D6: =COUNTA(D$11:D$43)-COUNTIF(D$11:D$43,"- not entered -") -> 0
C7: Data Exists Flag-> | D7: =IF(D6>0,1,0) -> 0
C8: not Used
C9: Grant Number-> | D9: OHLHB0477-10
A10: Q | C10: not Used
A11: 1 | B11: ="Question "&A11 -> Question 1 | C11: =VLOOKUP(A11,GEN,3,FALSE) -> Regarding this HUD Lead Hazard Control grant, please indicate your organization type:
A14: 2 | B14: ="Question "&A14 -> Question 2 | C14: =VLOOKUP(A14,GEN,3,FALSE) -> Please indicate the category that best describes your organization:
A22: 3 | C22: =VLOOKUP(A22,GEN,3,FALSE) -> What triggers recruitment of homes into the grant?
A23: =A22+0.02 -> 3.02
A24: =A23+0.01 -> 3.03
A25: =A24+0.01 -> 3.04
A26: 3.05
A27: 3.06
A28: 3.07
A29: 3.08
A30: 3.09
A31: 3.10
A32: 4 | C32: =VLOOKUP(A32,GEN,3,FALSE) -> Please rank unit recruitment triggers by frequency with most frequent at the top of the list.
A33: =A32+0.02 -> 4.02
A34: =A33+0.01 -> 4.03
A35: =A34+0.01 -> 4.04
A36: 4.05
A37: 4.06
A38: 4.07
A39: 4.08
A40: 4.09
A41: 4.10
A42: 5 | B42: ="Question "&A42 -> Question 5 | C42: =VLOOKUP(A42,GEN,3,FALSE) -> On how many dwelling units have you performed lead hazard control work and clearance testing in the past 12 months?
A43: 6 | B43: ="Question "&A43 -> Question 6 | C43: =VLOOKUP(A43,GEN,3,FALSE) -> What is the reporting limit of your laboratory for floor lead dust wipe samples in µg/ft² (generally indicated by a less-than sign (<) preceding the laboratory reported result)?

Sheet UData0 (hidden)
A1: UData0. Long-Term Storage of UNIT_Q. This sheet holds all the answers to Unit Questions
C5: % Completion Status-> | D5: 0 | F5: 0 | G5: 0 | K5: 0
C6: Count of Entries in Col-> | D6: =COUNTA(D$11:D$121)-COUNTIF(D$11:D$121,"- not entered -") -> 0 | E6: =COUNTA(E$11:E$121)-COUNTIF(E$11:E$121,"- not entered -") -> 0 | F6: 0 | G6: 0 | H6: 0 | I6: 0 | J6: 0 | K6: 0 | L6: 0 | M6: 0 | N6: 0 | O6: 0 | P6: 0 | Q6: 0 | R6: 0 | S6: 0 | T6: 0 | U6: 0 | V6: 0 | W6: 0
C7: Data Exists Flag-> | D7: =IF(D6>0,1,0) -> 0 | E7: =IF(E6>0,1,0) -> 0 | F7: 0 | G7: 0 | H7: 0 | I7: 0 | J7: 0 | K7: 0 | L7: 0 | M7: 0 | N7: 0 | O7: 0 | P7: 0 | Q7: 0 | R7: 0 | S7: 0 | T7: 0 | U7: 0 | V7: 0 | W7: 0
C8: Unit ID-> | D8: 1 | E8: 2 | F8: 3 | G8: 4 | H8: 5 | I8: 6 | J8: 7 | K8: 8 | L8: 9 | M8: 10 | N8: 11 | O8: 12 | P8: 13 | Q8: 14 | R8: 15 | S8: 16 | T8: 17 | U8: 18 | V8: 19 | W8: 20
C9: Grant Number-> | D9: =Central_Control!$B$1 -> OHLHB0477-10
A10: Q | B10: Question | D10: 621 Pasadena Place, Youngstown, OH ,44502 | F10: 33 Georgia Avenue, 3B, Youngstown, OH ,44502 | G10: 33 Georgia Avenue, 4A, Youngstown, OH ,44502 | K10: 911 Airport Rd, Youngstown, OH ,44502
A11: 1 | B11: =U!D11 -> Please identify the type of dwelling (check one):
A12: =A11+0.02 -> 1.02
A13: =A12+0.01 -> 1.03
A14: =A13+0.01 -> 1.04
A15: =A14+0.01 -> 1.05
A16: =A15+0.01 -> 1.06
A17: =A16+0.01 -> 1.07
A18: 2 | B18: =U!D18 -> Please identify the construction date of this unit (check one):
A19: =A18+0.02 -> 2.02
A20: =A19+0.01 -> 2.03
A21: =A20+0.01 -> 2.04
A22: =A21+0.01 -> 2.05
A23: =A22+0.01 -> 2.06
A24: =A23+0.01 -> 2.07
A25: 3 | B25: =U!D25 -> After conducting lead hazard control in this unit, what cleaning or other procedures did you use to reduce/eliminate remaining lead dust hazards before clearance testing (check all that apply)?"
A26: =A25+0.02 -> 3.02
A27: =A26+0.01 -> 3.03
A28: 3.04
A29: 3.05
A30: 3.06
A31: 3.07
A32: 3.08
A33: 3.09
A34: 3.10
A35: 3.11
A36: 3.12
A37: 3.13
A38: 4 | B38: =U!D38 -> Did this unit pass clearance on floors on the FIRST TRY?
A39: 5 | B39: =U!D39 -> Did this unit pass clearance on floors on the SECOND TRY?
A40: 6 | B40: =U!D40 -> Please identify the type of action taken to achieve clearance on floors in this unit AFTER ONE OR MORE CLEARANCE FAILURES​ (check all that apply)
A41: =A40+0.02 -> 6.02
A42: =A41+0.01 -> 6.03
A43: =A42+0.01 -> 6.04
A44: =A43+0.01 -> 6.05
A45: 7 | B45: =U!D45 -> How many FINAL floor dust wipe clearance samples were collected in this unit ("FINAL" means those passing clearance levels, not those failing to pass clearance)?
A46: 8 | B46: =U!D46 -> Please enter the loading levels (µg/ft²) for each of the FINAL floor dust wipe clearance samples: | C46: =U_Sort!C46 -> FloorSample 1
A47: =A46+0.02 -> 8.02 | C47: =U_Sort!C47 -> FloorSample 2
A48: =A47+0.01 -> 8.03 | C48: =U_Sort!C48 -> FloorSample 3
A49: 8.04 | C49: =U_Sort!C49 -> FloorSample 4
A50: 8.05 | C50: =U_Sort!C50 -> FloorSample 5
A51: 8.06 | C51: =U_Sort!C51 -> FloorSample 6
A52: 8.07 | C52: =U_Sort!C52 -> FloorSample 7
A53: 8.08 | C53: =U_Sort!C53 -> FloorSample 8
A54: 8.09 | C54: =U_Sort!C54 -> FloorSample 9
A55: 8.10 | C55: =U_Sort!C55 -> FloorSample 10
A56: 8.11 | C56: =U_Sort!C56 -> FloorSample 11
A57: 8.12 | C57: =U_Sort!C57 -> FloorSample 12
A58: 8.13 | C58: =U_Sort!C58 -> FloorSample 13
A59: 8.14 | C59: =U_Sort!C59 -> FloorSample 14
A60: 8.15 | C60: =U_Sort!C60 -> FloorSample 15
A61: 8.16 | C61: =U_Sort!C61 -> FloorSample 16
A62: 8.17 | C62: =U_Sort!C62 -> FloorSample 17
A63: 8.18 | C63: =U_Sort!C63 -> FloorSample 18
A64: 8.19 | C64: =U_Sort!C64 -> FloorSample 19
A65: 8.20 | C65: =U_Sort!C65 -> FloorSample 20
A66: 8.21 | C66: =U_Sort!C66 -> FloorSample 21
A67: 8.22 | C67: =U_Sort!C67 -> FloorSample 22
A68: 8.23 | C68: =U_Sort!C68 -> FloorSample 23
A69: 8.24 | C69: =U_Sort!C69 -> FloorSample 24
A70: 8.25 | C70: =U_Sort!C70 -> FloorSample 25
A71: 8.26 | C71: =U_Sort!C71 -> FloorSample 26
A72: 8.27 | C72: =U_Sort!C72 -> FloorSample 27
A73: 8.28 | C73: =U_Sort!C73 -> FloorSample 28
A74: 8.29 | C74: =U_Sort!C74 -> FloorSample 29
A75: 8.30 | C75: =U_Sort!C75 -> FloorSample 30
A76: 9 | B76: =U!D76 -> Did this unit pass clearance on windowsills on the FIRST TRY?
A77: 10 | B77: =U!D77 -> Did this unit pass clearance on windowsills on the SECOND TRY?
A78: 11 | B78: =U!D78 -> Please identify the type of action taken to achieve clearance on windowsills in this unit AFTER ONE OR MORE CLEARANCE FAILURES (check all that apply):
A79: =A78+0.02 -> 11.02
A80: =A79+0.01 -> 11.03
A81: =A80+0.01 -> 11.04
A82: 12 | B82: =U!D82 -> How many FINAL windowsill dust wipe clearance samples were collected in this unit ("FINAL" means those passing clearance levels, not those failing to pass clearance)?
A83: 13 | B83: =U!D83 -> Please enter the loading levels (µg/ft²) for each of the FINAL windowsill dust wipe clearance samples: | C83: =U_Sort!C83 -> WindowSillSample 1
A84: =A83+0.02 -> 13.02 | C84: =U_Sort!C84 -> WindowSillSample 2
A85: =A84+0.01 -> 13.03 | C85: =U_Sort!C85 -> WindowSillSample 3
A86: 13.04 | C86: =U_Sort!C86 -> WindowSillSample 4
A87: 13.05 | C87: =U_Sort!C87 -> WindowSillSample 5
A88: 13.06 | C88: =U_Sort!C88 -> WindowSillSample 6
A89: 13.07 | C89: =U_Sort!C89 -> WindowSillSample 7
A90: 13.08 | C90: =U_Sort!C90 -> WindowSillSample 8
A91: 13.09 | C91: =U_Sort!C91 -> WindowSillSample 9
A92: 13.10 | C92: =U_Sort!C92 -> WindowSillSample 10
A93: 13.11 | C93: =U_Sort!C93 -> WindowSillSample 11
A94: 13.12 | C94: =U_Sort!C94 -> WindowSillSample 12
A95: 13.13 | C95: =U_Sort!C95 -> WindowSillSample 13
A96: 13.14 | C96: =U_Sort!C96 -> WindowSillSample 14
A97: 13.15 | C97: =U_Sort!C97 -> WindowSillSample 15
A98: 13.16 | C98: =U_Sort!C98 -> WindowSillSample 16
A99: 13.17 | C99: =U_Sort!C99 -> WindowSillSample 17
A100: 13.18 | C100: =U_Sort!C100 -> WindowSillSample 18
A101: 13.19 | C101: =U_Sort!C101 -> WindowSillSample 19
A102: 13.20 | C102: =U_Sort!C102 -> WindowSillSample 20
A103: 13.21 | C103: =U_Sort!C103 -> WindowSillSample 21
A104: 13.22 | C104: =U_Sort!C104 -> WindowSillSample 22
A105: 13.23 | C105: =U_Sort!C105 -> WindowSillSample 23
A106: 13.24 | C106: =U_Sort!C106 -> WindowSillSample 24
A107: 13.25 | C107: =U_Sort!C107 -> WindowSillSample 25
A108: 13.26 | C108: =U_Sort!C108 -> WindowSillSample 26
A109: 13.27 | C109: =U_Sort!C109 -> WindowSillSample 27
A110: 13.28 | C110: =U_Sort!C110 -> WindowSillSample 28
A111: 13.29 | C111: =U_Sort!C111 -> WindowSillSample 29
A112: 13.30 | C112: =U_Sort!C112 -> WindowSillSample 30
A113: 14 | B113: =U!D113 -> Did this unit pass clearance on window troughs on the FIRST TRY?
A114: 15 | B114: =U!D114 -> Did this unit pass clearance on window troughs on the SECOND TRY?
A115: 16 | B115: =U!D115 -> Please identify the type of action taken to achieve clearance on window troughs in this unit AFTER ONE OR MORE CLEARANCE FAILURES (check all that apply):
A116: =A115+0.02 -> 16.02
A117: =A116+0.01 -> 16.03
A118: =A117+0.01 -> 16.04
A119: =A118+0.01 -> 16.05
A120: 17 | B120: =U!D120 -> How many FINAL window trough dust wipe clearance samples were collected in this unit ("FINAL" means those passing clearance levels, not those failing to pass clearance)?
A121: 18 | B121: =U!D121 -> Please enter the loading levels (µg/ft²) for each of the FINAL window trough dust wipe clearance samples: | C121: =U_Sort!C121 -> WindowTroughSample 1
C122: =U_Sort!C122 -> WindowTroughSample 2
C123: =U_Sort!C123 -> WindowTroughSample 3
C124: =U_Sort!C124 -> WindowTroughSample 4
C125: =U_Sort!C125 -> WindowTroughSample 5
C126: =U_Sort!C126 -> WindowTroughSample 6
C127: =U_Sort!C127 -> WindowTroughSample 7
C128: =U_Sort!C128 -> WindowTroughSample 8
C129: =U_Sort!C129 -> WindowTroughSample 9
C130: =U_Sort!C130 -> WindowTroughSample 10
C131: =U_Sort!C131 -> WindowTroughSample 11
C132: =U_Sort!C132 -> WindowTroughSample 12
C133: =U_Sort!C133 -> WindowTroughSample 13
C134: =U_Sort!C134 -> WindowTroughSample 14
C135: =U_Sort!C135 -> WindowTroughSample 15
C136: =U_Sort!C136 -> WindowTroughSample 16
C137: =U_Sort!C137 -> WindowTroughSample 17
C138: =U_Sort!C138 -> WindowTroughSample 18
C139: =U_Sort!C139 -> WindowTroughSample 19
C140: =U_Sort!C140 -> WindowTroughSample 20
C141: =U_Sort!C141 -> WindowTroughSample 21
C142: =U_Sort!C142 -> WindowTroughSample 22
C143: =U_Sort!C143 -> WindowTroughSample 23
C144: =U_Sort!C144 -> WindowTroughSample 24
C145: =U_Sort!C145 -> WindowTroughSample 25
C146: =U_Sort!C146 -> WindowTroughSample 26
C147: =U_Sort!C147 -> WindowTroughSample 27
C148: =U_Sort!C148 -> WindowTroughSample 28
C149: =U_Sort!C149 -> WindowTroughSample 29
C150: =U_Sort!C150 -> WindowTroughSample 30
A151: COUNTS OF ITEMS PROCESSED IN SORT SHEETS
C152: UQ3-> | D152: =COUNTA(D25:D37) -> 0 | E152: =COUNTA(E25:E37) -> 0 | F152: 0 | G152: 0 | H152: 0 | I152: 0 | J152: 0 | K152: 0 | L152: 0 | M152: 0 | N152: 0 | O152: 0 | P152: 0 | Q152: 0 | R152: 0 | S152: 0 | T152: 0 | U152: 0 | V152: 0 | W152: 0
C153: UQ6-> | D153: =COUNTA(D40:D44) -> 0 | E153: =COUNTA(E40:E44) -> 0 | F153: 0 | G153: 0 | H153: 0 | I153: 0 | J153: 0 | K153: 0 | L153: 0 | M153: 0 | N153: 0 | O153: 0 | P153: 0 | Q153: 0 | R153: 0 | S153: 0 | T153: 0 | U153: 0 | V153: 0 | W153: 0
C154: UQ8-> | D154: =COUNTA(D46:D75) -> 0 | E154: =COUNTA(E46:E75) -> 0 | F154: 0 | G154: 0 | H154: 0 | I154: 0 | J154: 0 | K154: 0 | L154: 0 | M154: 0 | N154: 0 | O154: 0 | P154: 0 | Q154: 0 | R154: 0 | S154: 0 | T154: 0 | U154: 0 | V154: 0 | W154: 0
C155: UQ11-> | D155: =COUNTA(D78:D81) -> 0 | E155: =COUNTA(E78:E81) -> 0 | F155: 0 | G155: 0 | H155: 0 | I155: 0 | J155: 0 | K155: 0 | L155: 0 | M155: 0 | N155: 0 | O155: 0 | P155: 0 | Q155: 0 | R155: 0 | S155: 0 | T155: 0 | U155: 0 | V155: 0 | W155: 0
C156: UQ13-> | D156: =COUNTA(D83:D112) -> 0 | E156: =COUNTA(E83:E112) -> 0 | F156: 0 | G156: 0 | H156: 0 | I156: 0 | J156: 0 | K156: 0 | L156: 0 | M156: 0 | N156: 0 | O156: 0 | P156: 0 | Q156: 0 | R156: 0 | S156: 0 | T156: 0 | U156: 0 | V156: 0 | W156: 0
C157: UQ16-> | D157: =COUNTA(D115:D119) -> 0 | E157: =COUNTA(E115:E119) -> 0 | F157: 0 | G157: 0 | H157: 0 | I157: 0 | J157: 0 | K157: 0 | L157: 0 | M157: 0 | N157: 0 | O157: 0 | P157: 0 | Q157: 0 | R157: 0 | S157: 0 | T157: 0 | U157: 0 | V157: 0 | W157: 0
C158: UQ18-> | D158: =COUNTA(D121:D150) -> 0 | E158: =COUNTA(E121:E150) -> 0 | F158: 0 | G158: 0 | H158: 0 | I158: 0 | J158: 0 | K158: 0 | L158: 0 | M158: 0 | N158: 0 | O158: 0 | P158: 0 | Q158: 0 | R158: 0 | S158: 0 | T158: 0 | U158: 0 | V158: 0 | W158: 0

Sheet Question_Macros (hidden)
A1: Question_Macros. Info for Creating Code for the UserForms
A2: This sheet will be hidden from User
A4: Sub Routines for Question Button Controls (excludes Other-Specify TextBox)
A5: Q# | B5: Call Macro Name | C5: Sheet Rows for | E5: Form # | F5: Form Tool Type | G5: Number of Pick Items (=tools in Form) | H5: Number of possible answers | I5: Y/N? | J5: Other in Pick List?
C6: Questions | D6: Pick Lists
A7: General Question Macros: "G" & "GEN_Q" Sheets
A8: 1 | B8: GetGrantType | C8: 11 | D8: 11-13 | E8: 1 | F8: OptionButton | G8: 3 | H8: 1
A9: 2 | B9: GetGrantOrg | C9: 14 | D9: 14-21 | E9: 2 | F9: OptionButton | G9: 8 | H9: 1
A10: 3 | B10: GetGrantTrig | C10: 22 | D10: 22-31 | E10: 3 | F10: CheckBox | G10: 10 | H10: 10
A11: 4 | B11: MoveTrigs | C11: 32 | E11: 4 | F11: ListBox | G11: 10 | H11: 10
A12: 5 | B12: GetNumUnits | C12: 42 | F12: InputBox | G12: 1 | H12: 1
A13: 6 | B13: GetLabLimit | C13: 43 | F13: InputBox | G13: 1 | H13: 1
A14: Unit-Specific Question Macros: "U" & "UNIT_Q Sheets
A15: 1 | B15: GetUnitType | C15: 11 | D15: 11-17 | E15: 5 | F15: OptionButton | G15: 7 | H15: 1 | J15: X
A16: 2 | B16: GetUnitAge | C16: 18 | D16: 18-24 | E16: 6 | F16: OptionButton | G16: 7 | H16: 1
A17: 3 | B17: GetUnitClean | C17: 25 | D17: 25-37 | E17: 7 | F17: CheckBox | G17: 13 | H17: 13 | J17: X
A18: 4 | B18: GetUnitFFail | C18: 38 | F18: MsgBox | G18: 1 | H18: 1 | I18: X
A19: 5 | B19: GetUnitFFailAgain | C19: 39 | F19: MsgBox | G19: 1 | H19: 1 | I19: X
A20: 6 | B20: GetUnitFAction | C20: 40 | D20: 40-44 | E20: 8 | F20: CheckBox | G20: 5 | H20: 5 | J20: X
A21: 7 | B21: GetUnitFCount | C21: 45 | F21: InputBox | G21: 1 | H21: 1
A22: 8 | B22: GetUnitFLevels | C22: 46 | D22: 46-75 | F22: InuptBox | G22: 1 | H22: 30
A23: 9 | B23: GetUnitWSFail | C23: 76 | F23: MsgBox | G23: 1 | H23: 1 | I23: X
A24: 10 | B24: GetUnitWSFailAgain | C24: 77 | F24: MsgBox | G24: 1 | H24: 1 | I24: X
A25: 11 | B25: GetUnitWSAction | C25: 78 | D25: 78-81 | E25: 9 | F25: CheckBox | G25: 4 | H25: 4 | J25: X
A26: 12 | B26: GetUnitWSCount | C26: 82 | F26: InputBox | G26: 1 | H26: 1
A27: 13 | B27: GetUnitWSLevels | C27: 83 | D27: 83-112 | F27: InuptBox | G27: 1 | H27: 30
A28: 14 | B28: GetUnitWTFail | C28: 113 | F28: MsgBox | G28: 1 | H28: 1 | I28: X
A29: 15 | B29: GetUnitWSFailAgain | C29: 114 | F29: MsgBox | G29: 1 | H29: 1 | I29: X
A30: 16 | B30: GetUnitWTAction | C30: 115 | D30: 115-119 | E30: 10 | F30: CheckBox | G30: 5 | H30: 5 | J30: X
A31: 17 | B31: GetUnitWTCount | C31: 120 | F31: InputBox | G31: 1 | H31: 1
A32: 18 | B32: GetUnitWTLevels | C32: 121 | D32: 121-150 | F32: InuptBox | G32: 1 | H32: 30
A33: Col B = used for Form captions; Col C = User displayed sheet questions (GEN-Q & UNIT_Q); Col D = Original questions used for Form prompt; Col E = picklists.
